[Event "55th Biel Festival MTO 2022"]
[Site "Biel"]
[Date "2022.07.16"]
[Round "4.16"]
[White "Sahithi Varshini M"]
[Black "Huschenbeth Niclas"]
[Result "0-1"]
[ECO "B87"]
[WhiteElo "2312"]
[BlackElo "2610"]
[Annotator "ChessBase"]
[PlyCount "58"]
[EventDate "2022.07.13"]
[EventType "swiss"]
[EventCountry "SUI"]
[SourceTitle "playchess.com"]
[Source "ChessBase"]
[SourceQuality "1"]
[TimeControl "40/5400+30:1800+30"]

1. e4 {[%emt 0:00:18]} c5 {[%emt 0:01:50]} 2. Nf3 {[%emt 0:00:25]} d6 {[%emt 0:00:05]} 3. d4 {[%emt 0:00:05]} cxd4 {[%emt 0:00:04]} 4. Nxd4 {[%emt 0:00:07]} Nf6 {[%emt 0:00:06]} 5. Nc3 {[%emt 0:00:07]} a6 {[%emt 0:00:03]} 6. Bc4 {[%emt 0:00:38]} e6 {[%emt 0:00:14]} 7. Qe2 {[%emt 0:01:59]} b5 {[%emt 0:04:12]} 8. Bb3 {[%emt 0:01:22]} Be7 {[%emt 0:01:11]} 9. a3 {[%emt 0:02:30]} O-O {[%emt 0:12:06]} 10. Bd2 {[%emt 0:21:59]} Bd7 {[%emt 0:04:20]} 11. f4 {[%emt 0:10:54]} Nc6 {[%emt 0:02:13]} 12. Nf3 {[%emt 0:05:24]} Na5 {[%emt 0:09:38]} 13. Ba2 {[%emt 0:06:04]} Rc8 {[%emt 0:04:18]} 14. O-O {[%emt 0:06:16]} Nc4 {[%emt 0:09:57]} 15. Bxc4 {[%emt 0:00:08]} Rxc4 {[%emt 0:00:08]} 16. e5 {[%emt 0:02:19]} dxe5 {[%emt 0:01:31]} 17. Nxe5 {[%emt 0:00:32]} Rc8 {[%emt 0:03:11]} 18. Be3 {[%emt 0:02:32]} Bc6 {[%emt 0:01:24]} 19. Rad1 {[%emt 0:21:06]} Qc7 {[%emt 0:00:56]} 20. Nxc6 {[%emt 0:00:05]} Qxc6 {[%emt 0:00:05]} 21. Bd4 {[%emt 0:00:06]} Rfd8 {[%emt 0:02:23]} 22. Kh1 {[%emt 0:00:20]} Qc4 {[%emt 0:13:07]} 23. Qf2 {[%emt 0:05:47]} a5 {[%emt 0:02:43]} 24. f5 {[%emt 0:05:07]} b4 {[%emt 0:01:58]} 25. axb4 {[%emt 0:01:18]} axb4 {[%emt 0:00:04]} 26. Ne2 {[%emt 0:00:42]} e5 {[%emt 0:04:08]} 27. b3 {[%emt 0:00:41]} Qb5 {[%emt 0:07:51]} 28. Ba7 {[%emt 0:01:25]} Rxd1 {[%emt 0:00:46]} 29. Rxd1 {[%emt 0:00:05]} Rxc2 {[%emt 0:00:15]} 0-1

[Event "55th Biel Festival MTO 2022"]
[Site "Biel"]
[Date "2022.07.16"]
[Round "4.17"]
[White "Petrov Martin"]
[Black "Stijve, Theo"]
[Result "1/2-1/2"]
[ECO "B77"]
[WhiteElo "2534"]
[BlackElo "2394"]
[Annotator "ChessBase"]
[PlyCount "167"]
[EventDate "2022.07.13"]
[EventType "swiss"]
[EventCountry "SUI"]
[SourceTitle "playchess.com"]
[Source "ChessBase"]
[SourceQuality "1"]
[TimeControl "40/5400+30:1800+30"]

1. e4 {[%emt 0:00:13]} c5 {[%emt 0:00:07]} 2. Nf3 {[%emt 0:00:14]} d6 {[%emt 0:00:06]} 3. d4 {[%emt 0:00:57]} cxd4 {[%emt 0:00:07]} 4. Nxd4 {[%emt 0:00:10]} Nf6 {[%emt 0:00:08]} 5. Nc3 {[%emt 0:00:10]} g6 {[%emt 0:00:09]} 6. Be3 {[%emt 0:00:50]} Bg7 {[%emt 0:00:07]} 7. f3 {[%emt 0:00:08]} O-O {[%emt 0:00:07]} 8. Qd2 {[%emt 0:00:06]} Nc6 {[%emt 0:00:06]} 9. Bc4 {[%emt 0:01:59]} Nxd4 {[%emt 0:00:26]} 10. Bxd4 {[%emt 0:00:12]} Be6 {[%emt 0:00:07]} 11. Bb3 {[%emt 0:01:26]} Qa5 {[%emt 0:00:11]} 12. O-O-O {[%emt 0:01:20]} b5 {[%emt 0:00:22]} 13. Kb1 {[%emt 0:06:30]} b4 {[%emt 0:00:55]} 14. Nd5 {[%emt 0:03:17]} Bxd5 {[%emt 0:00:12]} 15. exd5 {[%emt 0:07:39]} Qb5 {[%emt 0:01:32]} 16. Rhe1 {[%emt 0:02:47]} a5 {[%emt 0:00:17]} 17. Qe2 {[%emt 0:00:56]} Qxe2 {[%emt 0:02:14]} 18. Rxe2 {[%emt 0:05:56]} a4 {[%emt 0:00:08]} 19. Bc4 {[%emt 0:00:07]} Rfc8 {[%emt 0:00:06]} 20. b3 {[%emt 0:07:52]} Rc7 {[%emt 0:00:27]} 21. Bb5 {[%emt 0:11:20]} axb3 {[%emt 0:00:09]} 22. cxb3 {[%emt 0:00:42]} Ra5 {[%emt 0:00:22]} 23. Bc4 {[%emt 0:00:41]} Rb7 {[%emt 0:00:21]} 24. f4 {[%emt 0:20:23]} Ne8 {[%emt 0:14:23]} 25. g4 {[%emt 0:00:44]} Bxd4 {[%emt 0:03:44]} 26. Rxd4 {[%emt 0:00:01]} Kf8 {[%emt 0:01:37]} 27. g5 {[%emt 0:01:30]} Ng7 {[%emt 0:21:03]} 28. Bd3 {[%emt 0:06:18]} Rb8 {[%emt 0:10:15]} 29. Ree4 {[%emt 0:02:16]} Rba8 {[%emt 0:06:08]} 30. Rxb4 {[%emt 0:00:29]} Rxd5 {[%emt 0:01:10]} 31. Red4 {[%emt 0:02:12]} Rda5 {[%emt 0:11:35]} 32. Be4 {[%emt 0:01:20]} Ne6 {[%emt 0:02:04]} 33. Bxa8 {[%emt 0:01:35]} Nxd4 {[%emt 0:00:14]} 34. Rxd4 {[%emt 0:07:07]} Rxa8 {[%emt 0:00:12]} 35. Kb2 {[%emt 0:00:04]} Ke8 {[%emt 0:10:26]} 36. Rb4 {[%emt 0:01:59]} Kd7 {[%emt 0:04:29]} 37. Rb7+ {[%emt 0:00:09]} Ke6 {[%emt 0:00:11]} 38. a4 {[%emt 0:00:40]} d5 {[%emt 0:09:30]} 39. Kc3 {[%emt 0:00:46]} Kd6 {[%emt 0:00:38]} 40. Kd4 {[%emt 0:01:17]} h6 {[%emt 0:01:25]} 41. h4 {[%emt 0:14:01]} hxg5 {[%emt 0:01:52]} 42. hxg5 {[%emt 0:00:03]} Ra5 {[%emt 0:06:52]} 43. Rb8 {[%emt 0:04:31]} Ke6 {[%emt 0:02:57]} 44. Rc8 {[%emt 0:16:22]} Ra7 {[%emt 0:08:36]} 45. Rd8 {[%emt 0:01:06]} Ra5 {[%emt 0:02:51]} 46. Rh8 {[%emt 0:00:39]} f6 {[%emt 0:02:00]} 47. Rd8 {[%emt 0:00:10]} fxg5 {[%emt 0:02:50]} 48. fxg5 {[%emt 0:00:01]} Kf5 {[%emt 0:00:27]} 49. Rxd5+ {[%emt 0:00:11]} e5+ {[%emt 0:00:05]} 50. Kc4 {[%emt 0:00:23]} Rxd5 {[%emt 0:00:30]} 51. Kxd5 {[%emt 0:00:04]} e4 {[%emt 0:00:06]} 52. Kd4 {[%emt 0:00:03]} Kf4 {[%emt 0:00:06]} 53. a5 {[%emt 0:00:11]} e3 {[%emt 0:00:05]} 54. Kd3 {[%emt 0:00:03]} Kf3 {[%emt 0:00:05]} 55. a6 {[%emt 0:00:08]} e2 {[%emt 0:00:05]} 56. a7 {[%emt 0:00:08]} e1=Q {[%emt 0:00:08]} 57. a8=Q+ {[%emt 0:00:08]} Kf4 {[%emt 0:00:38]} 58. Qd5 {[%emt 0:00:49]} Qe7 {[%emt 0:04:33]} 59. Kc4 {[%emt 0:02:08]} Qxg5 {[%emt 0:03:13]} 60. b4 {[%emt 0:01:43]} Qe7 {[%emt 0:02:05]} 61. b5 {[%emt 0:00:23]} g5 {[%emt 0:01:08]} 62. b6 {[%emt 0:00:06]} g4 {[%emt 0:00:11]} 63. b7 {[%emt 0:00:19]} Qc7+ {[%emt 0:00:12]} 64. Kb5 {[%emt 0:00:20]} Kg3 {[%emt 0:01:49]} 65. Qc6 {[%emt 0:01:21]} Qe5+ {[%emt 0:00:58]} 66. Qc5 {[%emt 0:00:37]} Qb2+ {[%emt 0:00:21]} 67. Kc6 {[%emt 0:01:00]} Kh3 {[%emt 0:00:54]} 68. Qh5+ {[%emt 0:01:05]} Kg3 {[%emt 0:00:14]} 69. Qd5 {[%emt 0:00:25]} Kh3 {[%emt 0:00:39]} 70. Qd6 {[%emt 0:01:15]} Qc3+ {[%emt 0:00:23]} 71. Kb6 {[%emt 0:00:29]} Qb3+ {[%emt 0:00:21]} 72. Kc6 {[%emt 0:00:48]} Qc3+ {[%emt 0:00:14]} 73. Qc5 {[%emt 0:00:25]} Qf6+ {[%emt 0:00:23]} 74. Kc7 {[%emt 0:00:28]} Qf7+ {[%emt 0:00:28]} 75. Kb6 {[%emt 0:00:16]} Qb3+ {[%emt 0:00:21]} 76. Qb5 {[%emt 0:00:16]} Qe6+ {[%emt 0:00:26]} 77. Qc6 {[%emt 0:01:20]} Qb3+ {[%emt 0:00:25]} 78. Ka7 {[%emt 0:00:34]} Qa3+ {[%emt 0:00:37]} 79. Kb6 {[%emt 0:00:33]} Qb3+ {[%emt 0:00:09]} 80. Qb5 {[%emt 0:00:03]} Qe6+ {[%emt 0:00:12]} 81. Ka5 {[%emt 0:00:16]} Qa2+ {[%emt 0:00:17]} 82. Qa4 {[%emt 0:00:11]} Qd5+ {[%emt 0:00:45]} 83. Kb6 {[%emt 0:00:11]} Qe6+ {[%emt 0:00:49]} 84. Qc6 {[%emt 0:01:34]} 1/2-1/2

[Event "55th Biel Festival MTO 2022"]
[Site "Biel"]
[Date "2022.07.16"]
[Round "4.18"]
[White "Rathanvel V S"]
[Black "Aziz, Husain"]
[Result "1/2-1/2"]
[ECO "D31"]
[WhiteElo "2478"]
[BlackElo "2380"]
[Annotator "ChessBase"]
[PlyCount "48"]
[EventDate "2022.07.13"]
[EventType "swiss"]
[EventCountry "SUI"]
[SourceTitle "playchess.com"]
[Source "ChessBase"]
[SourceQuality "1"]
[TimeControl "40/5400+30:1800+30"]

1. d4 {[%emt 0:00:06]} d5 {[%emt 0:00:31]} 2. c4 {[%emt 0:00:12]} e6 {[%emt 0:00:02]} 3. cxd5 {[%emt 0:00:31]} exd5 {[%emt 0:00:18]} 4. Nc3 {[%emt 0:00:07]} c6 {[%emt 0:00:51]} 5. Bf4 {[%emt 0:00:44]} Bf5 {[%emt 0:00:48]} 6. e3 {[%emt 0:02:09]} Bd6 {[%emt 0:03:05]} 7. Bxd6 {[%emt 0:02:36]} Qxd6 {[%emt 0:00:03]} 8. Nge2 {[%emt 0:00:12]} Nd7 {[%emt 0:07:58]} 9. Ng3 {[%emt 0:00:08]} Bg6 {[%emt 0:00:37]} 10. Bd3 {[%emt 0:03:11]} Ne7 {[%emt 0:01:52]} 11. O-O {[%emt 0:00:46]} O-O {[%emt 0:01:44]} 12. Bxg6 {[%emt 0:05:10]} hxg6 {[%emt 0:02:20]} 13. Qb3 {[%emt 0:05:44]} Rab8 {[%emt 0:12:26]} 14. e4 {[%emt 0:18:12]} dxe4 {[%emt 0:00:27]} 15. Ngxe4 {[%emt 0:00:09]} Qc7 {[%emt 0:00:17]} 16. Rfe1 {[%emt 0:10:41]} Nb6 {[%emt 0:02:17]} 17. Rac1 {[%emt 0:02:38]} Rbd8 {[%emt 0:05:20]} 18. Ng5 {[%emt 0:09:59]} Qf4 {[%emt 0:05:22]} 19. Nce4 {[%emt 0:13:42]} Nf5 {[%emt 0:02:56]} 20. Qh3 {[%emt 0:07:35]} Nh6 {[%emt 0:00:11]} 21. Qa3 {[%emt 0:00:42]} Nc8 {[%emt 0:14:10]} 22. Qb3 {[%emt 0:01:45]} Nb6 {[%emt 0:07:26]} 23. Qa3 {[%emt 0:08:25]} Nc8 {[%emt 0:00:56]} 24. Qb3 {[%emt 0:00:01]} Nb6 {[%emt 0:00:12]} 1/2-1/2

[Event "55th Biel Festival MTO 2022"]
[Site "Biel"]
[Date "2022.07.16"]
[Round "4.19"]
[White "Schnepp Gunnar"]
[Black "Raja Harshit"]
[Result "0-1"]
[ECO "E43"]
[WhiteElo "2265"]
[BlackElo "2477"]
[Annotator "ChessBase"]
[PlyCount "58"]
[EventDate "2022.07.13"]
[EventType "swiss"]
[EventCountry "SUI"]
[SourceTitle "playchess.com"]
[Source "ChessBase"]
[SourceQuality "1"]
[TimeControl "40/5400+30:1800+30"]

1. d4 {[%emt 0:00:02]} Nf6 {[%emt 0:02:34]} 2. c4 {[%emt 0:00:04]} e6 {[%emt 0:00:08]} 3. Nc3 {[%emt 0:00:16]} Bb4 {[%emt 0:00:12]} 4. Bd2 {[%emt 0:00:08]} b6 {[%emt 0:02:57]} 5. e3 {[%emt 0:00:09]} c5 {[%emt 0:01:46]} 6. Nf3 {[%emt 0:01:27]} Bb7 {[%emt 0:02:09]} 7. Bd3 {[%emt 0:00:41]} cxd4 {[%emt 0:03:20]} 8. exd4 {[%emt 0:01:58]} O-O {[%emt 0:01:32]} 9. O-O {[%emt 0:02:06]} Nc6 {[%emt 0:05:57]} 10. a3 {[%emt 0:04:29]} Bxc3 {[%emt 0:01:56]} 11. Bxc3 {[%emt 0:02:44]} d5 {[%emt 0:00:28]} 12. Qe2 {[%emt 0:25:55]} dxc4 {[%emt 0:03:00]} 13. Bxc4 {[%emt 0:00:04]} Nd5 {[%emt 0:01:09]} 14. Bd2 {[%emt 0:07:53]} Rc8 {[%emt 0:01:33]} 15. Rfd1 {[%emt 0:11:49]} Qd6 {[%emt 0:00:45]} 16. Ba2 {[%emt 0:09:35]} Nce7 {[%emt 0:04:00]} 17. Rac1 {[%emt 0:13:58]} Nf4 {[%emt 0:02:59]} 18. Bxf4 {[%emt 0:01:25]} Qxf4 {[%emt 0:00:02]} 19. Qe3 {[%emt 0:00:11]} Qd6 {[%emt 0:00:23]} 20. Rxc8 {[%emt 0:00:52]} Rxc8 {[%emt 0:02:09]} 21. Bb1 {[%emt 0:00:03]} Qd5 {[%emt 0:04:16]} 22. h3 {[%emt 0:04:32]} Nf5 {[%emt 0:04:39]} 23. Qf4 {[%emt 0:05:52]} Qd6 {[%emt 0:06:14]} 24. Qxd6 {[%emt 0:02:48]} Nxd6 {[%emt 0:00:18]} 25. Nd2 {[%emt 0:00:18]} Nb5 {[%emt 0:01:08]} 26. Be4 {[%emt 0:01:41]} Bxe4 {[%emt 0:02:15]} 27. Nxe4 {[%emt 0:00:02]} Rc4 {[%emt 0:00:14]} 28. d5 {[%emt 0:01:20]} Rxe4 {[%emt 0:00:16]} 29. d6 {[%emt 0:00:06]} Rd4 {[%emt 0:00:20]} 0-1

[Event "55th Biel Festival MTO 2022"]
[Site "Biel"]
[Date "2022.07.16"]
[Round "4.20"]
[White "Dishman Stephen"]
[Black "Prraneeth Vuppala"]
[Result "0-1"]
[ECO "D02"]
[WhiteElo "2252"]
[BlackElo "2457"]
[Annotator "ChessBase"]
[PlyCount "74"]
[EventDate "2022.07.13"]
[EventType "swiss"]
[EventCountry "SUI"]
[SourceTitle "playchess.com"]
[Source "ChessBase"]
[SourceQuality "1"]
[TimeControl "40/5400+30:1800+30"]

1. Nf3 {[%emt 0:00:04]} d5 {[%emt 0:00:14]} 2. d4 {[%emt 0:00:22]} e6 {[%emt 0:00:30]} 3. Bf4 {[%emt 0:00:21]} Bd6 {[%emt 0:00:43]} 4. Bxd6 {[%emt 0:00:18]} Qxd6 {[%emt 0:00:49]} 5. c4 {[%emt 0:00:11]} dxc4 {[%emt 0:20:02]} 6. Nbd2 {[%emt 0:00:23]} b5 {[%emt 0:08:02]} 7. a4 {[%emt 0:00:51]} c6 {[%emt 0:00:20]} 8. b3 {[%emt 0:05:21]} cxb3 {[%emt 0:08:47]} 9. Qxb3 {[%emt 0:00:32]} bxa4 {[%emt 0:12:58]} 10. Rxa4 {[%emt 0:06:40]} Ne7 {[%emt 0:11:44]} 11. e4 {[%emt 0:12:57]} O-O {[%emt 0:03:08]} 12. e5 {[%emt 0:05:55]} Qc7 {[%emt 0:01:11]} 13. Bd3 {[%emt 0:02:53]} Nd7 {[%emt 0:01:36]} 14. O-O {[%emt 0:23:15]} h6 {[%emt 0:02:16]} 15. Ne4 {[%emt 0:04:16]} c5 {[%emt 0:06:59]} 16. Rc1 {[%emt 0:09:31]} Bb7 {[%emt 0:00:36]} 17. Qa3 {[%emt 0:01:30]} Ng6 {[%emt 0:11:29]} 18. dxc5 {[%emt 0:15:04]} Bc6 {[%emt 0:00:30]} 19. Rd4 {[%emt 0:05:53]} Ndxe5 {[%emt 0:00:44]} 20. Be2 {[%emt 0:01:45]} Nf4 {[%emt 0:03:05]} 21. Bd1 {[%emt 0:00:06]} Nxf3+ {[%emt 0:00:13]} 22. Bxf3 {[%emt 0:00:29]} Qe5 {[%emt 0:01:17]} 23. Qe3 {[%emt 0:02:20]} Nd5 {[%emt 0:01:46]} 24. Qd2 {[%emt 0:00:29]} a5 {[%emt 0:01:23]} 25. Nd6 {[%emt 0:00:19]} a4 {[%emt 0:00:37]} 26. Nc4 {[%emt 0:00:57]} Qf6 {[%emt 0:00:56]} 27. Nb6 {[%emt 0:00:17]} Nxb6 {[%emt 0:01:07]} 28. Bxc6 {[%emt 0:00:17]} Rad8 {[%emt 0:00:09]} 29. Rxd8 {[%emt 0:00:35]} Rxd8 {[%emt 0:00:01]} 30. Qb4 {[%emt 0:00:21]} Nd5 {[%emt 0:01:18]} 31. Bxd5 {[%emt 0:00:24]} Qg5 {[%emt 0:00:50]} 32. f4 {[%emt 0:00:47]} Qxd5 {[%emt 0:00:05]} 33. Qxa4 {[%emt 0:00:02]} Ra8 {[%emt 0:00:38]} 34. Qc2 {[%emt 0:00:41]} Ra2 {[%emt 0:00:11]} 35. Qxa2 {[%emt 0:00:55]} Qxa2 {[%emt 0:00:03]} 36. c6 {[%emt 0:00:05]} Qd2 {[%emt 0:00:14]} 37. Rc4 {[%emt 0:00:17]} Qe1# {[%emt 0:00:32]} 0-1

[Event "55th Biel Festival MTO 2022"]
[Site "Biel"]
[Date "2022.07.16"]
[Round "4.21"]
[White "Licznerski Lukasz"]
[Black "Seul, Georg"]
[Result "1/2-1/2"]
[ECO "B15"]
[WhiteElo "2451"]
[BlackElo "2367"]
[Annotator "ChessBase"]
[PlyCount "60"]
[EventDate "2022.07.13"]
[EventType "swiss"]
[EventCountry "SUI"]
[SourceTitle "playchess.com"]
[Source "ChessBase"]
[SourceQuality "1"]
[TimeControl "40/5400+30:1800+30"]

1. e4 {[%emt 0:00:09]} c6 {[%emt 0:00:07]} 2. d4 {[%emt 0:00:08]} d5 {[%emt 0:00:07]} 3. Nc3 {[%emt 0:00:29]} dxe4 {[%emt 0:00:08]} 4. Nxe4 {[%emt 0:00:03]} Nf6 {[%emt 0:00:06]} 5. Nxf6+ {[%emt 0:00:36]} exf6 {[%emt 0:00:04]} 6. Bc4 {[%emt 0:00:21]} Bd6 {[%emt 0:00:22]} 7. Qe2+ {[%emt 0:00:22]} Be7 {[%emt 0:00:10]} 8. Nf3 {[%emt 0:00:38]} O-O {[%emt 0:00:12]} 9. O-O {[%emt 0:00:18]} Re8 {[%emt 0:06:19]} 10. Re1 {[%emt 0:04:49]} Nd7 {[%emt 0:00:40]} 11. Qe4 {[%emt 0:29:08]} Nb6 {[%emt 0:12:54]} 12. Bd3 {[%emt 0:00:48]} g6 {[%emt 0:06:09]} 13. c4 {[%emt 0:18:28]} Bf5 {[%emt 0:27:04]} 14. Qe2 {[%emt 0:01:29]} Bg4 {[%emt 0:08:43]} 15. Be3 {[%emt 0:04:05]} c5 {[%emt 0:14:35]} 16. d5 {[%emt 0:02:35]} Bd6 {[%emt 0:05:23]} 17. h3 {[%emt 0:00:41]} Bxf3 {[%emt 0:00:17]} 18. Qxf3 {[%emt 0:00:04]} f5 {[%emt 0:00:48]} 19. Bd2 {[%emt 0:16:47]} Qh4 {[%emt 0:00:36]} 20. b3 {[%emt 0:00:53]} Nd7 {[%emt 0:00:13]} 21. Bf1 {[%emt 0:01:13]} Be5 {[%emt 0:04:05]} 22. Rad1 {[%emt 0:00:46]} Bd4 {[%emt 0:00:22]} 23. Qf4 {[%emt 0:04:13]} Qxf4 {[%emt 0:00:35]} 24. Bxf4 {[%emt 0:00:04]} Be5 {[%emt 0:04:18]} 25. Bxe5 {[%emt 0:01:55]} Rxe5 {[%emt 0:00:07]} 26. Rxe5 {[%emt 0:03:48]} Nxe5 {[%emt 0:00:02]} 27. d6 {[%emt 0:00:06]} Rd8 {[%emt 0:01:12]} 28. Rd5 {[%emt 0:01:23]} Nd7 {[%emt 0:00:20]} 29. g3 {[%emt 0:01:26]} b6 {[%emt 0:00:29]} 30. Bg2 {[%emt 0:01:01]} Nf6 {[%emt 0:01:48]} 1/2-1/2

[Event "55th Biel Festival MTO 2022"]
[Site "Biel"]
[Date "2022.07.16"]
[Round "4.22"]
[White "Mohammad Nubairshah Shaikh"]
[Black "Tanmay Chopra"]
[Result "1-0"]
[ECO "A13"]
[WhiteElo "2445"]
[BlackElo "2322"]
[Annotator "ChessBase"]
[PlyCount "73"]
[EventDate "2022.07.13"]
[EventType "swiss"]
[EventCountry "SUI"]
[SourceTitle "playchess.com"]
[Source "ChessBase"]
[SourceQuality "1"]
[TimeControl "40/5400+30:1800+30"]

1. Nf3 {[%emt 0:18:49]} Nf6 {[%emt 0:00:09]} 2. c4 {[%emt 0:00:23]} e6 {[%emt 0:00:25]} 3. g3 {[%emt 0:00:11]} d5 {[%emt 0:00:16]} 4. Bg2 {[%emt 0:00:04]} d4 {[%emt 0:00:30]} 5. O-O {[%emt 0:00:53]} c5 {[%emt 0:00:10]} 6. e3 {[%emt 0:00:20]} Nc6 {[%emt 0:00:08]} 7. exd4 {[%emt 0:00:20]} cxd4 {[%emt 0:00:06]} 8. d3 {[%emt 0:00:04]} h6 {[%emt 0:00:14]} 9. Bf4 {[%emt 0:01:41]} Nd7 {[%emt 0:00:46]} 10. Re1 {[%emt 0:00:43]} Bc5 {[%emt 0:03:50]} 11. Nbd2 {[%emt 0:13:06]} O-O {[%emt 0:20:49]} 12. Nb3 {[%emt 0:08:20]} Bb4 {[%emt 0:01:46]} 13. Re2 {[%emt 0:02:58]} Qb6 {[%emt 0:13:34]} 14. Rc1 {[%emt 0:07:09]} Re8 {[%emt 0:02:59]} 15. c5 {[%emt 0:10:33]} Bxc5 {[%emt 0:04:00]} 16. Nxc5 {[%emt 0:00:21]} Nxc5 {[%emt 0:00:04]} 17. Ne5 {[%emt 0:00:22]} Nxe5 {[%emt 0:06:56]} 18. Bxe5 {[%emt 0:00:13]} Nd7 {[%emt 0:00:16]} 19. Qa4 {[%emt 0:00:31]} Qd8 {[%emt 0:06:00]} 20. Bc7 {[%emt 0:04:04]} Qe7 {[%emt 0:01:38]} 21. Qxd4 {[%emt 0:00:28]} Nb6 {[%emt 0:03:23]} 22. a4 {[%emt 0:03:33]} Qd7 {[%emt 0:01:21]} 23. Qxd7 {[%emt 0:00:14]} Nxd7 {[%emt 0:00:13]} 24. a5 {[%emt 0:00:11]} a6 {[%emt 0:15:36]} 25. d4 {[%emt 0:00:08]} Nf6 {[%emt 0:00:23]} 26. Bb6 {[%emt 0:14:12]} Rf8 {[%emt 0:02:23]} 27. Rc7 {[%emt 0:00:17]} Nd5 {[%emt 0:00:37]} 28. Bxd5 {[%emt 0:00:48]} exd5 {[%emt 0:00:02]} 29. Bc5 {[%emt 0:00:06]} Rd8 {[%emt 0:00:52]} 30. Ree7 {[%emt 0:00:02]} Be6 {[%emt 0:00:30]} 31. Rxb7 {[%emt 0:00:10]} Re8 {[%emt 0:07:51]} 32. Ra7 {[%emt 0:02:57]} Bf5 {[%emt 0:03:21]} 33. Rxa6 {[%emt 0:01:51]} Rxa6 {[%emt 0:02:01]} 34. Rxe8+ {[%emt 0:00:05]} Kh7 {[%emt 0:00:06]} 35. Bb6 {[%emt 0:00:36]} Bd7 {[%emt 0:00:29]} 36. Rd8 {[%emt 0:00:15]} Bc6 {[%emt 0:00:20]} 37. Rd6 {[%emt 0:00:35]} 1-0

[Event "55th Biel Festival MTO 2022"]
[Site "Biel"]
[Date "2022.07.16"]
[Round "4.23"]
[White "Li Dominique"]
[Black "Krishna C R G"]
[Result "1/2-1/2"]
[ECO "A55"]
[WhiteElo "2212"]
[BlackElo "2430"]
[Annotator "ChessBase"]
[PlyCount "52"]
[EventDate "2022.07.13"]
[EventType "swiss"]
[EventCountry "SUI"]
[SourceTitle "playchess.com"]
[Source "ChessBase"]
[SourceQuality "1"]
[TimeControl "40/5400+30:1800+30"]

1. d4 {[%emt 0:00:15]} Nf6 {[%emt 0:00:10]} 2. c4 {[%emt 0:00:18]} d6 {[%emt 0:00:08]} 3. Nc3 {[%emt 0:00:29]} Nbd7 {[%emt 0:00:07]} 4. Nf3 {[%emt 0:00:14]} e5 {[%emt 0:00:03]} 5. e4 {[%emt 0:00:20]} Be7 {[%emt 0:00:02]} 6. Be2 {[%emt 0:01:12]} O-O {[%emt 0:00:04]} 7. O-O {[%emt 0:00:22]} c6 {[%emt 0:00:06]} 8. Qc2 {[%emt 0:00:54]} a6 {[%emt 0:01:21]} 9. a4 {[%emt 0:04:14]} a5 {[%emt 0:00:51]} 10. b3 {[%emt 0:02:21]} Re8 {[%emt 0:02:12]} 11. Ba3 {[%emt 0:02:58]} Qc7 {[%emt 0:00:55]} 12. Rac1 {[%emt 0:03:52]} exd4 {[%emt 0:01:28]} 13. Nxd4 {[%emt 0:00:51]} Nc5 {[%emt 0:00:07]} 14. Bf3 {[%emt 0:02:28]} Bd7 {[%emt 0:03:53]} 15. Rfe1 {[%emt 0:01:36]} Rad8 {[%emt 0:01:54]} 16. Rcd1 {[%emt 0:00:32]} Qb6 {[%emt 0:03:16]} 17. Bc1 {[%emt 0:03:21]} Ng4 {[%emt 0:07:56]} 18. h3 {[%emt 0:06:49]} Ne5 {[%emt 0:00:43]} 19. Be2 {[%emt 0:00:13]} Bf6 {[%emt 0:01:16]} 20. Be3 {[%emt 0:03:21]} Ng6 {[%emt 0:01:17]} 21. Bf1 {[%emt 0:05:42]} Bc8 {[%emt 0:21:32]} 22. Rb1 {[%emt 0:06:01]} Qc7 {[%emt 0:31:32]} 23. g3 {[%emt 0:02:54]} h5 {[%emt 0:00:03]} 24. Rbd1 {[%emt 0:05:11]} Qb6 {[%emt 0:02:12]} 25. Rb1 {[%emt 0:04:09]} Qc7 {[%emt 0:07:06]} 26. Rbd1 {[%emt 0:00:29]} Qb6 {[%emt 0:03:28]} 1/2-1/2

[Event "55th Biel Festival MTO 2022"]
[Site "Biel"]
[Date "2022.07.16"]
[Round "4.24"]
[White "Souleidis Georgios"]
[Black "Nideroest Bruno"]
[Result "1-0"]
[ECO "C12"]
[WhiteElo "2426"]
[BlackElo "2258"]
[Annotator "ChessBase"]
[PlyCount "47"]
[EventDate "2022.07.13"]
[EventType "swiss"]
[EventCountry "SUI"]
[SourceTitle "playchess.com"]
[Source "ChessBase"]
[SourceQuality "1"]
[TimeControl "40/5400+30:1800+30"]

1. e4 {[%emt 0:09:11]} e6 {[%emt 0:00:03]} 2. d4 {[%emt 0:00:06]} d5 {[%emt 0:00:07]} 3. Nc3 {[%emt 0:00:11]} Nf6 {[%emt 0:00:03]} 4. Bg5 {[%emt 0:00:37]} Bb4 {[%emt 0:00:15]} 5. e5 {[%emt 0:00:10]} h6 {[%emt 0:00:08]} 6. Bd2 {[%emt 0:00:20]} Bxc3 {[%emt 0:00:07]} 7. bxc3 {[%emt 0:00:05]} Ne4 {[%emt 0:00:08]} 8. Bc1 {[%emt 0:00:08]} c5 {[%emt 0:01:35]} 9. Ne2 {[%emt 0:03:37]} Qa5 {[%emt 0:11:56]} 10. f3 {[%emt 0:00:46]} Nxc3 {[%emt 0:10:25]} 11. Qd2 {[%emt 0:00:26]} cxd4 {[%emt 0:00:42]} 12. Nxd4 {[%emt 0:00:07]} Qc7 {[%emt 0:08:43]} 13. Bb2 {[%emt 0:00:34]} Qxe5+ {[%emt 0:02:46]} 14. Kf2 {[%emt 0:00:25]} Na4 {[%emt 0:05:56]} 15. Bb5+ {[%emt 0:00:22]} Bd7 {[%emt 0:00:21]} 16. Bxa4 {[%emt 0:00:12]} Bxa4 {[%emt 0:00:03]} 17. Qb4 {[%emt 0:00:14]} b5 {[%emt 0:05:47]} 18. Nxe6 {[%emt 0:01:21]} Nc6 {[%emt 0:05:05]} 19. Qc5 {[%emt 0:08:04]} Qxb2 {[%emt 0:10:53]} 20. Qxc6+ {[%emt 0:00:14]} Ke7 {[%emt 0:00:08]} 21. Rhe1 {[%emt 0:00:13]} fxe6 {[%emt 0:12:16]} 22. Rxe6+ {[%emt 0:12:14]} Kf7 {[%emt 0:01:01]} 23. Qxd5 {[%emt 0:09:00]} Rhc8 {[%emt 0:07:08]} 24. Rxh6+ {[%emt 0:01:27]} 1-0